[Event "*** Titled Tuesday Blitz"]
[Site "Chess.com"]
[Date "2021.04.20"]
[Round "8"]
[White "Komiagina_Maria"]
[Black "catzapto"]
[Result "1/2-1/2"]
[WhiteElo "2219"]
[BlackElo "2107"]
[TimeControl "180+1"]
[EndTime "11:27:47 PDT"]
[Termination "Game drawn - insufficient material"]

1. e4 {[%clk 0:02:58.8]} 1... c5 {[%clk 0:03:00.1]} 2. Nf3 {[%clk 0:02:58.3]}
2... e6 {[%clk 0:02:58]} 3. d4 {[%clk 0:02:57.8]} 3... cxd4 {[%clk 0:02:58.9]}
4. Nxd4 {[%clk 0:02:57.3]} 4... Nf6 {[%clk 0:02:59.8]} 5. Nc3 {[%clk 0:02:56.7]}
5... Bb4 {[%clk 0:02:59]} 6. e5 {[%clk 0:02:49.5]} 6... Nd5 {[%clk 0:02:58.5]}
7. Bd2 {[%clk 0:02:27]} 7... Qa5 {[%clk 0:02:56.5]} 8. Nxd5 {[%clk 0:02:14.5]}
8... Bxd2+ {[%clk 0:02:55.1]} 9. Qxd2 {[%clk 0:02:13.8]} 9... Qxd5 {[%clk
0:02:56]} 10. O-O-O {[%clk 0:02:09.1]} 10... Qxe5 {[%clk 0:02:40.8]} 11. f4
{[%clk 0:01:38.8]} 11... Qc5 {[%clk 0:02:11.6]} 12. f5 {[%clk 0:01:34.6]} 12...
O-O {[%clk 0:02:06.5]} 13. Qg5 {[%clk 0:01:14.9]} 13... Nc6 {[%clk 0:01:43.9]}
14. Nxc6 {[%clk 0:01:04]} 14... bxc6 {[%clk 0:01:35.1]} 15. Bd3 {[%clk
0:01:03.2]} 15... f6 {[%clk 0:01:29.9]} 16. Qh4 {[%clk 0:00:57.5]} 16... e5
{[%clk 0:01:23.4]} 17. g4 {[%clk 0:00:41.3]} 17... Qe3+ {[%clk 0:01:22.8]} 18.
Kb1 {[%clk 0:00:40.2]} 18... Qg5 {[%clk 0:01:23.2]} 19. Qf2 {[%clk 0:00:32.4]}
19... d5 {[%clk 0:01:20.8]} 20. Qc5 {[%clk 0:00:18.5]} 20... Bd7 {[%clk
0:01:11.3]} 21. h4 {[%clk 0:00:18.1]} 21... Qf4 {[%clk 0:01:11.1]} 22. g5 {[%clk
0:00:18]} 22... Rab8 {[%clk 0:01:07.1]} 23. a3 {[%clk 0:00:15.6]} 23... Qd4
{[%clk 0:00:58.4]} 24. Qxd4 {[%clk 0:00:14]} 24... exd4 {[%clk 0:00:59.3]} 25.
Rhe1 {[%clk 0:00:11.4]} 25... Rfe8 {[%clk 0:00:57.6]} 26. gxf6 {[%clk
0:00:10.4]} 26... Rxe1 {[%clk 0:00:56.3]} 27. Rxe1 {[%clk 0:00:10.2]} 27... gxf6
{[%clk 0:00:57.2]} 28. Re7 {[%clk 0:00:09.6]} 28... Rd8 {[%clk 0:00:54.1]} 29.
Kc1 {[%clk 0:00:09.7]} 29... c5 {[%clk 0:00:45.8]} 30. b3 {[%clk 0:00:09.3]}
30... Kf8 {[%clk 0:00:38.4]} 31. Rxh7 {[%clk 0:00:08.5]} 31... c4 {[%clk
0:00:39]} 32. bxc4 {[%clk 0:00:08]} 32... dxc4 {[%clk 0:00:39.9]} 33. Bxc4
{[%clk 0:00:08.2]} 33... Bxf5 {[%clk 0:00:40.4]} 34. Rh8+ {[%clk 0:00:07.8]}
34... Ke7 {[%clk 0:00:40.5]} 35. Rxd8 {[%clk 0:00:07.5]} 35... Kxd8 {[%clk
0:00:40]} 36. Kd2 {[%clk 0:00:07.6]} 36... Ke7 {[%clk 0:00:36.2]} 37. Bd3 {[%clk
0:00:07.5]} 37... Bg4 {[%clk 0:00:29.2]} 38. Bg6 {[%clk 0:00:06.4]} 38... f5
{[%clk 0:00:20.9]} 39. Kd3 {[%clk 0:00:06.6]} 39... Kf6 {[%clk 0:00:21.4]} 40.
Be8 {[%clk 0:00:03.9]} 40... Bd1 {[%clk 0:00:16.2]} 41. Kxd4 {[%clk 0:00:03.3]}
41... Bxc2 {[%clk 0:00:16]} 42. Ke3 {[%clk 0:00:03.6]} 42... Ke5 {[%clk
0:00:15.8]} 43. h5 {[%clk 0:00:03.3]} 43... f4+ {[%clk 0:00:16.7]} 44. Kf3
{[%clk 0:00:03.5]} 44... Be4+ {[%clk 0:00:16.7]} 45. Kf2 {[%clk 0:00:03.5]}
45... f3 {[%clk 0:00:16.9]} 46. h6 {[%clk 0:00:02.8]} 46... Kf4 {[%clk 0:00:17]}
47. Bf7 {[%clk 0:00:02]} 47... Bh7 {[%clk 0:00:16.8]} 48. Bh5 {[%clk 0:00:01.5]}
48... Kg5 {[%clk 0:00:17.1]} 49. Bxf3 {[%clk 0:00:01.5]} 49... Kxh6 {[%clk
0:00:18]} 50. a4 {[%clk 0:00:01.9]} 50... Kg5 {[%clk 0:00:18.9]} 51. a5 {[%clk
0:00:02.2]} 51... Kf6 {[%clk 0:00:19.8]} 52. a6 {[%clk 0:00:02.4]} 52... Ke7
{[%clk 0:00:20.3]} 53. Bb7 {[%clk 0:00:02.3]} 53... Bd3 {[%clk 0:00:20.3]} 54.
Ke3 {[%clk 0:00:02.5]} 54... Bxa6 {[%clk 0:00:21.2]} 55. Bxa6 {[%clk 0:00:02.2]}
55... Kd6 {[%clk 0:00:22.1]} 56. Kd4 {[%clk 0:00:02.2]} 56... Kc7 {[%clk
0:00:22.4]} 57. Bb5 {[%clk 0:00:02.5]} 57... Kb6 {[%clk 0:00:23.3]} 58. Kc4
{[%clk 0:00:02.9]} 58... a5 {[%clk 0:00:24.2]} 59. Ba4 {[%clk 0:00:02.8]} 59...
Ka6 {[%clk 0:00:24.2]} 60. Kc5 {[%clk 0:00:03.2]} 60... Ka7 {[%clk 0:00:23.6]}
61. Kb5 {[%clk 0:00:03.3]} 61... Kb7 {[%clk 0:00:24]} 62. Kxa5 {[%clk
0:00:03.8]} 1/2-1/2

[Event "*** Titled Tuesday Blitz"]
[Site "Chess.com"]
[Date "2021.04.20"]
[Round "8"]
[White "attack2mateU"]
[Black "sara_khm"]
[Result "1-0"]
[WhiteElo "2707"]
[BlackElo "2539"]
[TimeControl "180+1"]
[EndTime "11:27:49 PDT"]
[Termination "attack2mateU won by resignation"]

1. e4 {[%clk 0:02:58.2]} 1... e5 {[%clk 0:02:59.6]} 2. Nf3 {[%clk 0:02:58.3]}
2... Nc6 {[%clk 0:02:59.8]} 3. Bc4 {[%clk 0:02:58.3]} 3... Bc5 {[%clk
0:02:59.2]} 4. c3 {[%clk 0:02:58]} 4... Nf6 {[%clk 0:02:59.1]} 5. d4 {[%clk
0:02:57.8]} 5... exd4 {[%clk 0:02:58.8]} 6. e5 {[%clk 0:02:58]} 6... d5 {[%clk
0:02:59]} 7. Bb5 {[%clk 0:02:58.2]} 7... Ne4 {[%clk 0:02:59.6]} 8. cxd4 {[%clk
0:02:58.3]} 8... Bb6 {[%clk 0:03:00]} 9. Nc3 {[%clk 0:02:58.1]} 9... Bg4 {[%clk
0:02:56.6]} 10. Be3 {[%clk 0:02:57.7]} 10... O-O {[%clk 0:02:53]} 11. h3 {[%clk
0:02:57.3]} 11... Bh5 {[%clk 0:02:52.3]} 12. Qc2 {[%clk 0:02:57.1]} 12... Bg6
{[%clk 0:02:51.6]} 13. Qb3 {[%clk 0:02:57]} 13... Ne7 {[%clk 0:02:47]} 14. O-O
{[%clk 0:02:56.5]} 14... c6 {[%clk 0:02:41.5]} 15. Bd3 {[%clk 0:02:55.9]} 15...
Nd2 {[%clk 0:02:41.1]} 16. Nxd2 {[%clk 0:02:55.1]} 16... Bxd3 {[%clk 0:02:41.4]}
17. Rfe1 {[%clk 0:02:55.7]} 17... Bg6 {[%clk 0:02:33.1]} 18. Na4 {[%clk
0:02:55.1]} 18... f6 {[%clk 0:02:26.7]} 19. exf6 {[%clk 0:02:32]} 19... Rxf6
{[%clk 0:02:23.8]} 20. Nxb6 {[%clk 0:02:29.4]} 20... axb6 {[%clk 0:02:23.4]} 21.
Bg5 {[%clk 0:02:26.9]} 21... Rf7 {[%clk 0:02:20.4]} 22. Qb4 {[%clk 0:02:10]}
22... c5 {[%clk 0:01:52.4]} 23. dxc5 {[%clk 0:02:09.4]} 23... Nc6 {[%clk
0:01:52.3]} 24. Bxd8 {[%clk 0:00:52.8]} 24... Nxb4 {[%clk 0:01:51.5]} 25. Re8+
{[%clk 0:00:53.2]} 25... Rf8 {[%clk 0:01:51.8]} 26. Rxf8+ {[%clk 0:00:53.5]}
26... Kxf8 {[%clk 0:01:52.5]} 27. Bxb6 {[%clk 0:00:52.7]} 27... Nc2 {[%clk
0:01:49.8]} 28. Rd1 {[%clk 0:00:39.9]} 28... Rxa2 {[%clk 0:01:49.6]} 29. Nf3
{[%clk 0:00:39.6]} 29... Nb4 {[%clk 0:01:24.8]} 30. Rd2 {[%clk 0:00:30.4]} 30...
h6 {[%clk 0:01:23.9]} 31. Ne5 {[%clk 0:00:23.2]} 31... Bf5 {[%clk 0:01:16.1]}
32. g4 {[%clk 0:00:23]} 32... Be6 {[%clk 0:01:09.9]} 33. f4 {[%clk 0:00:23.1]}
33... Ra1+ {[%clk 0:01:07.2]} 34. Kf2 {[%clk 0:00:23.1]} 34... Nc6 {[%clk
0:00:55.4]} 35. Nxc6 {[%clk 0:00:21.4]} 35... bxc6 {[%clk 0:00:55.6]} 36. f5
{[%clk 0:00:21.8]} 36... Bc8 {[%clk 0:00:54.3]} 37. Bc7 {[%clk 0:00:20.8]} 37...
Ba6 {[%clk 0:00:54]} 38. Rd4 {[%clk 0:00:13.4]} 38... Rf1+ {[%clk 0:00:51.6]}
39. Kg3 {[%clk 0:00:13.4]} 39... Rc1 {[%clk 0:00:44.6]} 40. Ra4 {[%clk
0:00:11.1]} 40... Bb5 {[%clk 0:00:39.3]} 41. Ra8+ {[%clk 0:00:08.1]} 41... Ke7
{[%clk 0:00:38.4]} 42. Ra7 {[%clk 0:00:07]} 42... Ke8 {[%clk 0:00:34.5]} 43. Bd6
{[%clk 0:00:06.3]} 43... Rg1+ {[%clk 0:00:31.4]} 44. Kf4 {[%clk 0:00:06.1]}
44... Rf1+ {[%clk 0:00:30.2]} 45. Ke3 {[%clk 0:00:05.7]} 45... Rh1 {[%clk
0:00:28.9]} 46. Rxg7 {[%clk 0:00:05.2]} 46... Rxh3+ {[%clk 0:00:29.2]} 47. Kf4
{[%clk 0:00:05.8]} 47... Rh1 {[%clk 0:00:24.8]} 48. f6 {[%clk 0:00:04.4]} 48...
Rf1+ {[%clk 0:00:24.5]} 49. Ke5 {[%clk 0:00:04.8]} 49... Re1+ {[%clk 0:00:24.5]}
50. Kf5 {[%clk 0:00:04.1]} 50... Bd3+ {[%clk 0:00:24.6]} 51. Kf4 {[%clk
0:00:03.2]} 51... Rf1+ {[%clk 0:00:24.6]} 52. Ke5 {[%clk 0:00:03.7]} 52... Re1+
{[%clk 0:00:24.3]} 53. Kd4 {[%clk 0:00:04.2]} 53... Rf1 {[%clk 0:00:17.4]} 54.
Kxd3 {[%clk 0:00:02.3]} 54... Rf3+ {[%clk 0:00:16.9]} 55. Kd4 {[%clk 0:00:02.9]}
55... Rxf6 {[%clk 0:00:17.2]} 56. Ke5 {[%clk 0:00:03.8]} 56... Rf1 {[%clk
0:00:17]} 57. Ke6 {[%clk 0:00:04.1]} 57... Re1+ {[%clk 0:00:16.7]} 58. Be5
{[%clk 0:00:04.7]} 58... Kf8 {[%clk 0:00:16.7]} 59. Rh7 {[%clk 0:00:05.2]} 59...
Rxe5+ {[%clk 0:00:14.9]} 60. Kxe5 {[%clk 0:00:05.4]} 1-0

[Event "*** Titled Tuesday Blitz"]
[Site "Chess.com"]
[Date "2021.04.20"]
[Round "8"]
[White "Sadykov_Ramil"]
[Black "scarabee43"]
[Result "1/2-1/2"]
[WhiteElo "2490"]
[BlackElo "2634"]
[TimeControl "180+1"]
[EndTime "11:27:52 PDT"]
[Termination "Game drawn by repetition"]

1. e4 {[%clk 0:03:00.9]} 1... c5 {[%clk 0:02:59.8]} 2. Nf3 {[%clk 0:03:00]} 2...
e6 {[%clk 0:03:00.4]} 3. d4 {[%clk 0:02:59.5]} 3... cxd4 {[%clk 0:03:01.3]} 4.
Nxd4 {[%clk 0:03:00.4]} 4... Nc6 {[%clk 0:03:01.8]} 5. Nc3 {[%clk 0:02:58.7]}
5... Qc7 {[%clk 0:03:02.1]} 6. Be3 {[%clk 0:02:55.4]} 6... a6 {[%clk 0:03:02.6]}
7. Qf3 {[%clk 0:02:54.1]} 7... Bd6 {[%clk 0:03:01.4]} 8. O-O-O {[%clk
0:02:50.5]} 8... Be5 {[%clk 0:03:01.3]} 9. Nxc6 {[%clk 0:02:48.4]} 9... bxc6
{[%clk 0:03:00]} 10. Bd4 {[%clk 0:02:46.9]} 10... Nf6 {[%clk 0:03:00.1]} 11.
Bxe5 {[%clk 0:02:43.3]} 11... Qxe5 {[%clk 0:03:00.4]} 12. Qe3 {[%clk 0:02:42.1]}
12... Ng4 {[%clk 0:03:00.5]} 13. Qe1 {[%clk 0:02:35.5]} 13... Nf6 {[%clk
0:03:00.2]} 14. g3 {[%clk 0:02:33.5]} 14... O-O {[%clk 0:02:49.8]} 15. f4 {[%clk
0:02:26.8]} 15... Qc7 {[%clk 0:02:49.5]} 16. e5 {[%clk 0:02:21.3]} 16... Nd5
{[%clk 0:02:49.8]} 17. Bd3 {[%clk 0:02:09.4]} 17... a5 {[%clk 0:02:42.8]} 18.
Qe4 {[%clk 0:01:57.9]} 18... g6 {[%clk 0:02:41.1]} 19. Qe1 {[%clk 0:01:40.1]}
19... Ba6 {[%clk 0:02:35.8]} 20. Bxa6 {[%clk 0:01:34.4]} 20... Rxa6 {[%clk
0:02:35.1]} 21. Ne4 {[%clk 0:01:34.1]} 21... Rb8 {[%clk 0:02:24.7]} 22. c4
{[%clk 0:01:18.7]} 22... Nb6 {[%clk 0:02:21.8]} 23. Qe2 {[%clk 0:01:03]} 23...
Ra7 {[%clk 0:02:16.6]} 24. h4 {[%clk 0:00:53.3]} 24... Qb7 {[%clk 0:02:05.8]}
25. Nc5 {[%clk 0:00:41.7]} 25... Qc8 {[%clk 0:02:04.2]} 26. h5 {[%clk
0:00:41.8]} 26... Qf8 {[%clk 0:01:56]} 27. Ne4 {[%clk 0:00:38.4]} 27... d5
{[%clk 0:01:41.7]} 28. exd6 {[%clk 0:00:26.7]} 28... Qg7 {[%clk 0:01:39.9]} 29.
h6 {[%clk 0:00:22]} 29... Qh8 {[%clk 0:01:34.5]} 30. Nc5 {[%clk 0:00:18.5]}
30... Nd7 {[%clk 0:01:28]} 31. Nxd7 {[%clk 0:00:17.4]} 31... Rxd7 {[%clk
0:01:28.3]} 32. Qe5 {[%clk 0:00:17.6]} 32... Qxe5 {[%clk 0:01:21.2]} 33. fxe5
{[%clk 0:00:18.5]} 33... Rdb7 {[%clk 0:01:18.8]} 34. Rh2 {[%clk 0:00:17.3]}
34... Rd8 {[%clk 0:01:15.6]} 35. Kc2 {[%clk 0:00:14.1]} 35... c5 {[%clk
0:01:13.5]} 36. Kc3 {[%clk 0:00:13.2]} 36... Rbd7 {[%clk 0:01:08.8]} 37. Rf2
{[%clk 0:00:13.2]} 37... f5 {[%clk 0:01:08.6]} 38. exf6 {[%clk 0:00:08]} 38...
Rxd6 {[%clk 0:01:08.9]} 39. Rxd6 {[%clk 0:00:07.8]} 39... Rxd6 {[%clk
0:01:08.8]} 40. f7+ {[%clk 0:00:04.3]} 40... Kf8 {[%clk 0:01:08.7]} 41. a3
{[%clk 0:00:04.8]} 41... Rd1 {[%clk 0:01:05.3]} 42. b4 {[%clk 0:00:04.3]} 42...
axb4+ {[%clk 0:01:00.9]} 43. axb4 {[%clk 0:00:05.2]} 43... cxb4+ {[%clk
0:01:00.5]} 44. Kxb4 {[%clk 0:00:05.4]} 44... e5 {[%clk 0:00:56.7]} 45. c5
{[%clk 0:00:05]} 45... Rb1+ {[%clk 0:00:54.5]} 46. Kc4 {[%clk 0:00:04.6]} 46...
Rc1+ {[%clk 0:00:53.8]} 47. Kd5 {[%clk 0:00:04.8]} 47... e4 {[%clk 0:00:54.2]}
48. c6 {[%clk 0:00:02.1]} 48... e3 {[%clk 0:00:54.5]} 49. Re2 {[%clk 0:00:02.4]}
49... Rc3 {[%clk 0:00:54.5]} 50. Kd6 {[%clk 0:00:02.1]} 50... Kxf7 {[%clk
0:00:53.4]} 51. c7 {[%clk 0:00:02.5]} 51... Rd3+ {[%clk 0:00:53.3]} 52. Kc6
{[%clk 0:00:02.4]} 52... Rc3+ {[%clk 0:00:52]} 53. Kb7 {[%clk 0:00:02.6]} 53...
Rb3+ {[%clk 0:00:52.2]} 54. Ka6 {[%clk 0:00:02.9]} 54... Rc3 {[%clk 0:00:51.3]}
55. Kb6 {[%clk 0:00:02.9]} 55... Rb3+ {[%clk 0:00:51.3]} 56. Ka5 {[%clk
0:00:02.8]} 56... Rc3 {[%clk 0:00:45.4]} 57. Kb6 {[%clk 0:00:03.3]} 57... Rb3+
{[%clk 0:00:40.6]} 58. Kc5 {[%clk 0:00:03.4]} 58... Rc3+ {[%clk 0:00:38.3]} 59.
Kd6 {[%clk 0:00:03.7]} 59... Rd3+ {[%clk 0:00:38.3]} 60. Kc6 {[%clk 0:00:03.1]}
60... Rc3+ {[%clk 0:00:37]} 61. Kb7 {[%clk 0:00:03.6]} 61... Rb3+ {[%clk
0:00:35.3]} 62. Ka7 {[%clk 0:00:04]} 62... Rc3 {[%clk 0:00:34.3]} 63. Kb7 {[%clk
0:00:04.2]} 1/2-1/2

[Event "*** Titled Tuesday Blitz"]
[Site "Chess.com"]
[Date "2021.04.20"]
[Round "8"]
[White "TimKett"]
[Black "ferch1ni"]
[Result "1-0"]
[WhiteElo "2250"]
[BlackElo "2376"]
[TimeControl "180+1"]
[EndTime "11:27:56 PDT"]
[Termination "TimKett won by resignation"]

1. e4 {[%clk 0:03:00.9]} 1... c5 {[%clk 0:02:59.7]} 2. Nf3 {[%clk 0:03:00.6]}
2... Nc6 {[%clk 0:02:59.9]} 3. d4 {[%clk 0:03:00.9]} 3... cxd4 {[%clk
0:03:00.8]} 4. Nxd4 {[%clk 0:03:01.2]} 4... Nf6 {[%clk 0:03:01.4]} 5. Nc3 {[%clk
0:03:01.6]} 5... g6 {[%clk 0:03:01.9]} 6. Be3 {[%clk 0:02:55.1]} 6... Bg7 {[%clk
0:03:01.5]} 7. f3 {[%clk 0:02:55.4]} 7... O-O {[%clk 0:02:58.4]} 8. Bc4 {[%clk
0:02:46.5]} 8... a6 {[%clk 0:02:56.3]} 9. Bb3 {[%clk 0:02:40.6]} 9... Na5 {[%clk
0:02:53.7]} 10. Qd2 {[%clk 0:02:36.8]} 10... b5 {[%clk 0:02:51.4]} 11. O-O-O
{[%clk 0:02:35.6]} 11... Nxb3+ {[%clk 0:02:49.7]} 12. axb3 {[%clk 0:02:35]}
12... d6 {[%clk 0:02:50.1]} 13. h4 {[%clk 0:02:26.7]} 13... h5 {[%clk
0:02:49.9]} 14. Bh6 {[%clk 0:02:24.8]} 14... Bd7 {[%clk 0:02:41.4]} 15. Bxg7
{[%clk 0:02:21.2]} 15... Kxg7 {[%clk 0:02:41.8]} 16. Nd5 {[%clk 0:02:13.5]}
16... Nxd5 {[%clk 0:02:33.5]} 17. exd5 {[%clk 0:02:13.7]} 17... a5 {[%clk
0:02:25.6]} 18. g4 {[%clk 0:02:12.8]} 18... Rh8 {[%clk 0:02:25.8]} 19. g5 {[%clk
0:02:02]} 19... a4 {[%clk 0:02:04.8]} 20. b4 {[%clk 0:02:01.6]} 20... a3 {[%clk
0:02:04.9]} 21. bxa3 {[%clk 0:01:57.6]} 21... Rxa3 {[%clk 0:02:04.3]} 22. Nb3
{[%clk 0:01:21.1]} 22... Qc7 {[%clk 0:01:53]} 23. Qd4+ {[%clk 0:01:17.8]} 23...
Kh7 {[%clk 0:01:52.2]} 24. Kb2 {[%clk 0:01:03.7]} 24... Ra4 {[%clk 0:01:38.1]}
25. Rhe1 {[%clk 0:01:00.9]} 25... Bf5 {[%clk 0:01:37.4]} 26. c3 {[%clk
0:00:57.6]} 26... Rc8 {[%clk 0:01:14]} 27. Qe3 {[%clk 0:00:47.3]} 27... e5
{[%clk 0:01:12.8]} 28. dxe6 {[%clk 0:00:46.4]} 28... Bxe6 {[%clk 0:01:13.2]} 29.
Ra1 {[%clk 0:00:37.6]} 29... Rxb4 {[%clk 0:00:20.7]} 30. cxb4 {[%clk 0:00:19.2]}
30... Qc2+ {[%clk 0:00:20.4]} 31. Ka3 {[%clk 0:00:19.2]} 31... Ra8+ {[%clk
0:00:17.5]} 32. Na5 {[%clk 0:00:18.4]} 32... Qa4+ {[%clk 0:00:17.9]} 33. Kb2
{[%clk 0:00:17.8]} 33... Qxb4+ {[%clk 0:00:18.5]} 34. Kc2 {[%clk 0:00:15.2]}
34... Rxa5 {[%clk 0:00:06.3]} 35. Rxa5 {[%clk 0:00:14.5]} 35... Qxa5 {[%clk
0:00:07.2]} 36. Qd2 {[%clk 0:00:13]} 36... Qa2+ {[%clk 0:00:07.1]} 37. Kd1
{[%clk 0:00:13.1]} 37... Qc4 {[%clk 0:00:07.7]} 38. Re3 {[%clk 0:00:12.4]} 38...
d5 {[%clk 0:00:07.5]} 39. Rc3 {[%clk 0:00:12.4]} 39... Qa4+ {[%clk 0:00:06.6]}
40. Kc1 {[%clk 0:00:11.7]} 40... d4 {[%clk 0:00:06.9]} 41. Rc7 {[%clk
0:00:10.9]} 41... b4 {[%clk 0:00:05.3]} 42. Qxd4 {[%clk 0:00:10.3]} 42... Qa3+
{[%clk 0:00:04.9]} 43. Qb2 {[%clk 0:00:09.4]} 43... Qe3+ {[%clk 0:00:04.6]} 44.
Kb1 {[%clk 0:00:08.1]} 44... b3 {[%clk 0:00:03.5]} 45. Qf6 {[%clk 0:00:07.1]}
45... Qe1+ {[%clk 0:00:03.5]} 46. Kb2 {[%clk 0:00:06.8]} 46... Qd2+ {[%clk
0:00:03.9]} 47. Ka3 {[%clk 0:00:06.4]} 47... Qa2+ {[%clk 0:00:03.8]} 48. Kb4
{[%clk 0:00:06.6]} 48... Qd2+ {[%clk 0:00:04.7]} 49. Kb5 {[%clk 0:00:05.9]}
49... Qd3+ {[%clk 0:00:05]} 50. Kb6 {[%clk 0:00:05.6]} 50... Qe3+ {[%clk
0:00:05.2]} 51. Kb7 {[%clk 0:00:05.4]} 51... Qd4 {[%clk 0:00:02.1]} 52. Rxf7+
{[%clk 0:00:04.5]} 52... Bxf7 {[%clk 0:00:02.2]} 53. Qxd4 {[%clk 0:00:04.5]}
53... Kg8 {[%clk 0:00:02.7]} 54. Qb2 {[%clk 0:00:04.8]} 54... Kf8 {[%clk
0:00:03.6]} 55. Kc6 {[%clk 0:00:04.8]} 55... Kg8 {[%clk 0:00:04.5]} 56. Kc5
{[%clk 0:00:05.4]} 56... Kf8 {[%clk 0:00:05.4]} 57. Kb4 {[%clk 0:00:06]} 57...
Ke7 {[%clk 0:00:06.3]} 58. Kc3 {[%clk 0:00:06.7]} 58... Kd6 {[%clk 0:00:07.1]}
59. Kd4 {[%clk 0:00:07.5]} 59... Ke6 {[%clk 0:00:07.5]} 60. Qxb3+ {[%clk
0:00:06.7]} 60... Ke7 {[%clk 0:00:08.4]} 61. Qb7+ {[%clk 0:00:06.6]} 61... Kf8
{[%clk 0:00:08.9]} 62. Ke5 {[%clk 0:00:06.5]} 62... Be8 {[%clk 0:00:09]} 63. Kf6
{[%clk 0:00:06.3]} 1-0

[Event "*** Titled Tuesday Blitz"]
[Site "Chess.com"]
[Date "2021.04.20"]
[Round "8"]
[White "nrvisakh"]
[Black "GM_dmitrij"]
[Result "1-0"]
[WhiteElo "2805"]
[BlackElo "2893"]
[TimeControl "180+1"]
[EndTime "11:28:00 PDT"]
[Termination "nrvisakh won on time"]

1. e4 {[%clk 0:02:27.2]} 1... e5 {[%clk 0:02:59.4]} 2. Nf3 {[%clk 0:02:26.7]}
2... Nc6 {[%clk 0:03:00]} 3. Bb5 {[%clk 0:02:25.7]} 3... a6 {[%clk 0:03:00.4]}
4. Ba4 {[%clk 0:02:26.2]} 4... Nf6 {[%clk 0:02:59.8]} 5. O-O {[%clk 0:02:26.3]}
5... Bc5 {[%clk 0:03:00.4]} 6. Re1 {[%clk 0:02:20.1]} 6... d6 {[%clk 0:02:57.1]}
7. c3 {[%clk 0:02:20.2]} 7... b5 {[%clk 0:02:55.9]} 8. Bc2 {[%clk 0:02:19.8]}
8... O-O {[%clk 0:02:55.5]} 9. d4 {[%clk 0:02:15.6]} 9... Bb6 {[%clk 0:02:55.3]}
10. h3 {[%clk 0:02:08.5]} 10... h6 {[%clk 0:02:51.6]} 11. Be3 {[%clk 0:02:05.9]}
11... exd4 {[%clk 0:02:44.7]} 12. Nxd4 {[%clk 0:02:04.7]} 12... Nxd4 {[%clk
0:02:34.2]} 13. cxd4 {[%clk 0:01:55.2]} 13... Bb7 {[%clk 0:02:33.1]} 14. Nd2
{[%clk 0:01:55]} 14... Re8 {[%clk 0:02:31.2]} 15. d5 {[%clk 0:01:53.1]} 15...
Bxe3 {[%clk 0:02:28]} 16. Rxe3 {[%clk 0:01:54]} 16... c6 {[%clk 0:02:27.8]} 17.
dxc6 {[%clk 0:01:50.3]} 17... Bxc6 {[%clk 0:02:28.7]} 18. Rc1 {[%clk 0:01:49]}
18... Rc8 {[%clk 0:02:26.2]} 19. Re1 {[%clk 0:01:25.5]} 19... Qb6 {[%clk
0:02:21.5]} 20. Bb1 {[%clk 0:01:22]} 20... Bb7 {[%clk 0:02:06.4]} 21. Rxc8
{[%clk 0:01:20.8]} 21... Rxc8 {[%clk 0:02:07.3]} 22. Nb3 {[%clk 0:01:20.8]}
22... Re8 {[%clk 0:02:02.2]} 23. Qf3 {[%clk 0:00:49.4]} 23... a5 {[%clk
0:01:55.6]} 24. Qe3 {[%clk 0:00:47]} 24... Qxe3 {[%clk 0:01:14.1]} 25. Rxe3
{[%clk 0:00:47.9]} 25... Nxe4 {[%clk 0:01:14.7]} 26. Nxa5 {[%clk 0:00:44.8]}
26... Bd5 {[%clk 0:01:10.5]} 27. f3 {[%clk 0:00:42.5]} 27... Nf6 {[%clk
0:01:09.3]} 28. Rxe8+ {[%clk 0:00:42.7]} 28... Nxe8 {[%clk 0:01:10.2]} 29. Kf2
{[%clk 0:00:43.3]} 29... Kf8 {[%clk 0:01:04.7]} 30. b4 {[%clk 0:00:42.9]} 30...
Nc7 {[%clk 0:00:59.3]} 31. a3 {[%clk 0:00:41.4]} 31... Ke7 {[%clk 0:00:55.4]}
32. Ke3 {[%clk 0:00:41.3]} 32... g5 {[%clk 0:00:49.5]} 33. Be4 {[%clk
0:00:36.8]} 33... Be6 {[%clk 0:00:44.3]} 34. Nc6+ {[%clk 0:00:35.5]} 34... Kd7
{[%clk 0:00:44.4]} 35. Nd4 {[%clk 0:00:35.5]} 35... Bc4 {[%clk 0:00:41.8]} 36.
Kd2 {[%clk 0:00:34.5]} 36... h5 {[%clk 0:00:35.3]} 37. g3 {[%clk 0:00:29.8]}
37... h4 {[%clk 0:00:21.3]} 38. gxh4 {[%clk 0:00:28]} 38... gxh4 {[%clk
0:00:22.2]} 39. Bd3 {[%clk 0:00:27.4]} 39... Bxd3 {[%clk 0:00:09.8]} 40. Kxd3
{[%clk 0:00:27.6]} 40... Ne6 {[%clk 0:00:10.7]} 41. Nxb5 {[%clk 0:00:13.2]}
41... Nf4+ {[%clk 0:00:10.6]} 42. Ke3 {[%clk 0:00:13.3]} 42... Nxh3 {[%clk
0:00:11.5]} 43. Nd4 {[%clk 0:00:13.3]} 43... Ng5 {[%clk 0:00:09.3]} 44. f4
{[%clk 0:00:11.9]} 44... h3 {[%clk 0:00:09]} 45. Kf2 {[%clk 0:00:12.2]} 45...
Ne6 {[%clk 0:00:08.8]} 46. Ne2 {[%clk 0:00:11.7]} 46... d5 {[%clk 0:00:09.2]}
47. Kg3 {[%clk 0:00:11.4]} 47... d4 {[%clk 0:00:09.8]} 48. f5 {[%clk 0:00:11.7]}
48... Ng5 {[%clk 0:00:07.3]} 49. Nxd4 {[%clk 0:00:10.2]} 49... Kd6 {[%clk
0:00:07.9]} 50. a4 {[%clk 0:00:09]} 50... Ke5 {[%clk 0:00:07.2]} 51. a5 {[%clk
0:00:08.4]} 51... Ne4+ {[%clk 0:00:04.9]} 52. Kxh3 {[%clk 0:00:07.9]} 52... Nd6
{[%clk 0:00:02.6]} 53. a6 {[%clk 0:00:08.3]} 53... Nc8 {[%clk 0:00:02.8]} 54.
Nc6+ {[%clk 0:00:08.8]} 54... Kxf5 {[%clk 0:00:02]} 55. a7 {[%clk 0:00:07.3]}
55... Nb6 {[%clk 0:00:02.6]} 56. b5 {[%clk 0:00:05.6]} 56... Ke4 {[%clk
0:00:02.9]} 57. Ne7 {[%clk 0:00:04.3]} 1-0